bitfinex/quotes_SOLUSD_20241016
["timestamp","ask_amount","ask_price","bid_price","bid_amount"]
[1729057276992,6.4633,154.72,154.68,16.1621]
[1729057277490,6.4633,154.72,154.68,22.627]
[1729057277691,6.4629,154.73,154.68,22.627]
[1729057278589,50.239384,154.74,154.69,6.4644]
[1729057278793,6.4629,154.73,154.69,6.4644]
[1729057279199,6.4629,154.73,154.68,22.627]
[1729057280222,39.427684,154.72,154.67,6.4652]
[1729057280399,45.890984,154.72,154.67,6.4652]
[1729057282907,15.6508,154.72,154.64,20.0]
[1729057283112,15.6508,154.72,154.69,6.4644]
[1729057283485,23.776884,154.73,154.69,6.4644]
[1729057283692,20.0,154.74,154.68,16.1621]
[1729057283904,6.4623,154.75,154.68,16.1621]
[1729057284414,6.4623,154.75,154.71,6.4636]
[1729057286896,6.4628,154.73,154.69,6.4644]
[1729057296104,6.4628,154.73,154.65,11.61610417]
[1729057296105,6.4638,154.71,154.65,16.165]
[1729057296308,30.241284,154.7,154.65,22.6308]
[1729057301428,23.776884,154.7,154.65,22.6308]
[1729057301628,6.4645,154.69,154.65,22.6308]
[1729057305238,30.240984,154.7,154.65,22.6308]
[1729057308538,6.1413,154.72,154.65,16.165]
[1729057308831,43.776884,154.72,154.65,16.165]
[1729057309530,50.240184,154.72,154.67,6.4651]
[1729057310105,6.4639,154.71,154.66,6.4657]
[1729057322036,50.240184,154.72,154.67,6.4651]
[1729057324720,30.240184,154.72,154.67,6.4651]
[1729057325739,23.776884,154.72,154.62,0.1]
[1729057325950,23.776884,154.72,154.68,6.4647]
[1729057326238,30.240284,154.72,154.68,6.4647]
[1729057327123,6.4647,154.69,154.65,6.4661]
[1729057328330,30.240984,154.7,154.65,6.4661]
[1729057329143,23.776884,154.7,154.64,22.6327]
[1729057329336,30.242184,154.68,154.63,6.4668]
[1729057329642,20.0,154.7,154.6,15.7871]
[1729057329948,6.4646,154.69,154.63,16.1667]
[1729057330250,20.0,154.7,154.65,6.4661]
[1729057330544,26.4642,154.7,154.65,6.4661]
[1729057334228,6.4645,154.69,154.65,6.4661]
[1729057334549,30.242084,154.68,154.63,22.6335]
[1729057337853,23.776884,154.68,154.63,16.1667]
[1729057338145,30.241884,154.68,154.63,22.6336]
[1729057344149,6.4655,154.67,154.63,22.6336]
[1729057345356,6.4655,154.67,154.6,15.6871]
[1729057345357,30.242784,154.66,154.6,31.8574]
[1729057345555,6.4666,154.64,154.6,22.6384]
[1729057346030,23.776884,154.66,154.6,22.6384]
[1729057346236,6.4663,154.65,154.6,22.6384]
[1729057346635,30.243484,154.64,154.6,22.6384]
[1729057347758,30.243484,154.64,154.6,16.1703]
[1729057354244,30.243484,154.64,154.6,22.6385]
[1729057364876,30.243484,154.64,154.6,16.1703]
[1729057374692,23.776884,154.64,154.6,22.6382]
[1729057375191,23.776884,154.64,154.61,6.4678]
[1729057376278,13.22250929,154.66,154.61,6.4678]
[1729057376472,23.776884,154.65,154.61,6.4677]
[1729057376874,6.75670929,154.66,154.62,6.4672]
[1729057377589,38.5705,154.69,154.64,6.4665]
[1729057377590,6.4651,154.68,154.64,6.4665]
[1729057377769,6.4651,154.68,154.63,16.1674]
[1729057378091,6.4651,154.68,154.63,22.6343]
[1729057379077,23.776884,154.67,154.63,22.6343]
[1729057382874,6.4653,154.67,154.63,22.6343]
[1729057386087,23.776884,154.66,154.6,16.1702]
[1729057386392,6.4664,154.65,154.6,22.6384]
[1729057387185,23.776884,154.63,154.6,16.1702]
[1729057388872,23.776884,154.63,154.59,6.4686]
[1729057389070,30.243984,154.63,154.59,6.4686]
[1729057393599,6.4675,154.62,154.57,16.1733]
[1729057394396,6.4675,154.62,154.58,6.4691]
[1729057394803,93.776884,154.63,154.57,16.1733]
[1729057394985,30.244684,154.61,154.57,16.1733]
[1729057395184,6.4683,154.6,154.55,6.4703]
[1729057395595,23.776884,154.59,154.55,6.4703]
[1729057395802,23.776884,154.59,154.54,22.6473]
[1729057395803,30.245584,154.59,154.54,22.6473]
[1729057397520,30.245584,154.59,154.55,6.4703]
[1729057397680,30.246384,154.57,154.53,6.471]
[1729057400807,70.0,154.6,154.55,6.47]
[1729057401006,23.776884,154.59,154.55,6.47]
[1729057412109,30.245684,154.59,154.55,6.47]
[1729057412322,30.245684,154.59,154.54,6.4707]
[1729057414200,30.245684,154.59,154.55,6.4702]
[1729057414397,22.3777,154.64,154.55,6.4702]
[1729057414398,23.776884,154.61,154.55,15.4578]
[1729057414701,92.3777,154.64,154.55,35.4578]
[1729057415026,70.0,154.64,154.57,16.173]
[1729057415893,23.776884,154.63,154.59,6.4686]
[1729057419230,6.4667,154.64,154.59,6.4686]
[1729057420416,43.776884,154.65,154.56,11.61610417]
[1729057420725,30.243084,154.65,154.61,6.4677]
[1729057431418,23.776884,154.65,154.61,6.4677]
[1729057434434,23.776884,154.65,154.59,16.1711]
[1729057434435,83.21883183,154.66,154.59,16.1711]
[1729057434605,83.21883183,154.66,154.62,6.4674]
[1729057435026,6.75293183,154.66,154.65,6.4662]
[1729057435241,6.4637,154.71,154.64,16.166]
[1729057435445,6.4637,154.71,154.66,6.4654]
[1729057436511,23.776884,154.7,154.66,6.4654]
[1729057438140,6.4646,154.69,154.65,6.4661]
[1729057438311,6.4641,154.7,154.65,6.4661]
[1729057438711,6.4641,154.7,154.66,6.4657]
[1729057440413,6.4641,154.7,154.65,6.4661]
[1729057440927,23.776884,154.69,154.64,16.166]
[1729057441130,23.776884,154.69,154.66,6.4657]
[1729057441653,23.776884,154.71,154.67,6.465]
[1729057443630,30.240584,154.71,154.67,6.465]
[1729057445846,30.12414697,154.71,154.67,6.465]
[1729057450956,23.66044697,154.71,154.67,6.465]
[1729057453540,76.4629,154.73,154.68,6.4648]
[1729057453729,23.776884,154.72,154.68,6.4648]
[1729057454554,6.4629,154.73,154.69,6.4645]
[1729057456045,76.75492652,154.75,154.69,6.4645]
[1729057456255,76.75492652,154.75,154.68,16.1617]
[1729057456439,23.776884,154.74,154.7,6.4638]
[1729057457542,23.776884,154.74,154.69,6.4644]
[1729057457854,6.463,154.73,154.68,22.6263]
[1729057458069,6.463,154.73,154.68,16.1617]
[1729057459062,6.463,154.73,154.68,22.6266]
[1729057460546,6.75492652,154.75,154.72,6.4629]
[1729057460732,6.4613,154.77,154.72,6.4629]
[1729057462455,6.4608,154.78,154.73,6.4626]
[1729057466560,50.237284,154.79,154.74,6.4623]
[1729057466759,6.4608,154.78,154.74,6.4623]
[1729057467555,6.4608,154.78,154.72,16.1576]
[1729057467866,6.4608,154.78,154.73,6.4627]
[1729057470170,70.0,154.82,154.72,16.1576]
[1729057470371,30.236884,154.8,154.75,6.4619]
[1729057478476,70.0,154.82,154.76,6.4615]
[1729057478477,30.236484,154.81,154.76,6.4615]
[1729057480470,23.776884,154.81,154.77,22.6137]
[1729057480791,30.236384,154.81,154.77,22.6137]
[1729057481288,30.236384,154.81,154.77,16.1526]
[1729057489282,23.776884,154.81,154.7,22.1906]
[1729057489478,30.237584,154.79,154.74,6.4622]
[1729057496984,23.776884,154.79,154.74,6.4622]
[1729057497192,23.776884,154.8,154.74,6.4622]
[1729057497700,23.776884,154.8,154.75,6.462]
[1729057499003,20.0,154.81,154.76,6.4615]
[1729057499679,20.0,154.81,154.75,16.1544]
[1729057500002,70.0,154.82,154.77,6.461]
[1729057500801,20.0,154.82,154.78,6.4607]
[1729057503488,20.6251651,154.83,154.79,6.4602]
[1729057503705,20.6251651,154.83,154.78,16.1516]
[1729057503706,0.6251651,154.83,154.78,16.1516]
[1729057503913,0.6251651,154.83,154.8,16.1491]
[1729057504841,0.6251651,154.83,154.79,6.46]
[1729057505025,6.4594,154.82,154.77,22.6136]
[1729057505196,20.6251651,154.83,154.8,6.4598]
[1729057505392,0.6251651,154.83,154.8,6.4598]
[1729057506093,0.6251651,154.83,154.79,16.1502]
[1729057506293,0.6251651,154.83,154.81,6.4594]
[1729057508643,0.6251651,154.83,154.82,6.4591]
[1729057508813,0.6251651,154.83,154.79,16.1502]
[1729057509016,0.6251651,154.83,154.81,6.4591]
[1729057509409,0.6251651,154.83,154.82,6.4591]
[1729057511736,0.6251651,154.83,154.8,6.4597]
[1729057511931,0.6251651,154.83,154.81,6.4591]
[1729057513041,0.6251651,154.83,154.82,6.4591]
[1729057522946,0.6251651,154.83,154.74,15.1492]
[1729057523258,93.776884,154.82,154.75,6.462]
[1729057523549,93.776884,154.82,154.72,16.1572]
[1729057523550,93.776884,154.8,154.76,6.4616]
[1729057523927,93.776884,154.8,154.74,16.1553]
[1729057524123,100.236984,154.8,154.75,6.4618]
[1729057524429,6.5043,154.81,154.7,15.1492]
[1729057524430,93.776884,154.78,154.7,15.1492]
[1729057524630,23.776884,154.76,154.72,6.4631]
[1729057528538,93.776884,154.76,154.72,6.4631]
[1729057530432,100.238584,154.76,154.71,22.6227]
[1729057530757,23.776884,154.74,154.71,16.1591]
[1729057530929,30.239484,154.74,154.69,6.4642]
[1729057531132,23.776884,154.72,154.68,6.4649]
[1729057532159,23.776884,154.73,154.68,6.4649]
[1729057534751,70.0,154.72,154.68,6.4649]
[1729057535058,23.776884,154.71,154.68,6.4649]
[1729057535246,23.776884,154.73,154.69,6.4644]
[1729057537453,6.4633,154.72,154.67,22.628]
[1729057537762,23.776884,154.7,154.67,16.1627]
[1729057538330,23.776884,154.7,154.66,6.4656]
[1729057544259,70.0,154.69,154.65,6.466]
[1729057544564,30.241784,154.68,154.64,22.6329]
[1729057546952,70.0,154.67,154.64,16.1664]
[1729057547278,23.776884,154.66,154.62,6.4674]
[1729057547867,23.776884,154.64,154.6,22.6377]
[1729057549891,23.776884,154.62,154.58,6.4691]
[1729057551477,23.776884,154.6,154.57,22.6429]
[1729057551787,23.776884,154.61,154.57,16.1734]
[1729057551952,23.776884,154.62,154.58,6.469]
[1729057554176,30.244484,154.62,154.57,22.6429]
[1729057554477,23.776884,154.62,154.57,16.1734]
[1729057554656,23.776884,154.62,154.58,6.4691]
[1729057556483,30.244484,154.62,154.57,22.6426]
[1729057557469,70.0,154.61,154.57,22.6426]
[1729057557676,23.776884,154.6,154.57,22.6426]
[1729057558086,30.245184,154.6,154.55,22.2958]
[1729057558275,30.245184,154.6,154.54,16.1767]
[1729057558468,30.245184,154.6,154.55,6.4703]
[1729057558669,23.776884,154.6,154.57,6.4694]
[1729057558870,23.776884,154.6,154.54,16.1767]
[1729057558871,23.776884,154.6,154.56,6.4696]
[1729057559894,23.776884,154.6,154.56,6.4699]
[1729057560185,70.0,154.63,154.59,6.4684]
[1729057560377,6.4667,154.64,154.59,6.4684]
[1729057560582,70.0,154.63,154.59,6.4684]
[1729057561378,23.776884,154.62,154.59,6.4684]
[1729057561872,70.0,154.65,154.61,6.4677]
[1729057562071,6.4661,154.66,154.61,6.4677]
[1729057562389,70.0,154.67,154.62,6.4673]
[1729057562697,6.4658,154.66,154.61,16.1695]
[1729057562990,23.776884,154.65,154.61,16.1695]
[1729057563865,93.776884,154.65,154.61,16.1695]
[1729057565499,100.243184,154.65,154.61,16.1695]
[1729057567293,100.243184,154.65,154.6,6.4679]
[1729057567875,43.776884,154.62,154.54,22.3885]
[1729057568181,6.4682,154.61,154.56,6.4696]
[1729057568780,6.4682,154.61,154.54,22.3885]
[1729057568988,23.776884,154.62,154.58,6.4688]
[1729057570605,83.2227753,154.65,154.6,6.468]
[1729057570790,23.776884,154.64,154.6,6.468]
[1729057577103,6.4659,154.66,154.6,16.1699]
[1729057577295,70.0,154.71,154.6,23.147]
[1729057577497,70.0,154.71,154.61,20.0]
[1729057578412,6.4645,154.69,154.64,6.4664]
[1729057578585,23.776884,154.68,154.64,6.4664]
[1729057580921,23.776884,154.68,154.62,16.1678]
[1729057581205,6.4662,154.65,154.61,6.4678]
[1729057581411,30.242684,154.66,154.61,6.4678]
[1729057582605,23.776884,154.66,154.62,6.4673]
[1729057582814,6.4654,154.67,154.63,6.467]
[1729057583107,20.0,154.68,154.65,6.466]
[1729057583404,70.0,154.71,154.6,16.6558]
[1729057583611,0.1,154.75,154.6,16.6558]
[1729057583612,85.4404,154.73,154.64,16.1658]
[1729057583794,6.4636,154.72,154.67,6.4652]
[1729057583994,6.4636,154.72,154.67,16.1634]
[1729057584205,6.4636,154.72,154.67,22.6287]
[1729057584779,23.776884,154.71,154.67,22.6287]
[1729057585308,23.776884,154.71,154.67,16.1634]
[1729057585519,23.776884,154.72,154.67,22.6283]
[1729057586001,70.0,154.75,154.69,6.4644]
[1729057586193,76.462,154.75,154.69,6.4644]
[1729057586809,76.462,154.75,154.67,16.1634]
[1729057587018,6.4625,154.74,154.68,6.4646]
[1729057587382,6.4625,154.74,154.69,6.4644]
[1729057587698,23.776884,154.74,154.7,6.4641]
[1729057590004,23.776884,154.74,154.69,6.4644]
[1729057590005,30.239284,154.74,154.69,6.4644]
[1729057590381,30.239284,154.74,154.7,6.4641]
[1729057591614,23.776884,154.74,154.67,16.1634]
[1729057592106,30.239384,154.74,154.69,6.4642]
[1729057592291,30.239384,154.74,154.7,6.464]
[1729057592491,23.776884,154.74,154.7,6.464]
[1729057593592,23.776884,154.74,154.67,16.1634]
[1729057594404,30.239384,154.74,154.69,6.4645]
[1729057597114,30.239384,154.74,154.67,16.1634]
[1729057597115,23.776884,154.74,154.67,16.1634]
[1729057597303,6.4633,154.72,154.68,6.4648]
[1729057599421,6.4629,154.73,154.68,6.4648]
[1729057601129,30.240184,154.72,154.68,6.4648]
[1729057601424,30.240184,154.72,154.67,22.6285]
[1729057603215,23.776884,154.72,154.68,6.4649]
[1729057604424,70.0,154.71,154.67,16.1634]
[1729057604620,23.776884,154.7,154.66,6.4655]
[1729057604824,6.4651,154.68,154.64,16.1663]
[1729057605114,6.4645,154.69,154.64,16.1663]
[1729057605316,6.4645,154.69,154.65,6.4661]
[1729057605526,23.776884,154.7,154.63,20.0]
[1729057605721,23.776884,154.7,154.66,22.6296]
[1729057609002,30.241084,154.7,154.66,22.6296]
[1729057610430,30.241084,154.7,154.65,6.466]
[1729057611709,30.240984,154.7,154.66,6.4657]
[1729057612102,30.240984,154.7,154.63,16.1671]
[1729057612301,30.240984,154.7,154.65,6.4661]
[1729057613843,6.4648,154.69,154.64,6.4665]
[1729057623213,23.776884,154.7,154.63,16.1671]
[1729057623419,23.776884,154.7,154.58,18.01560417]
[1729057623420,23.776884,154.66,154.6,16.1702]
[1729057623840,6.4668,154.64,154.6,16.1702]
[1729057627127,6.4668,154.64,154.6,22.6383]
[1729057629073,6.4668,154.64,154.6,16.1702]
[1729057629258,6.4668,154.64,154.6,22.6384]
[1729057629465,6.4668,154.64,154.6,16.1702]
[1729057630056,6.4668,154.64,154.57,16.2931]
[1729057630057,6.4675,154.62,154.58,6.4691]
[1729057630358,6.4671,154.63,154.59,6.4686]
[1729057631171,23.776884,154.64,154.59,6.4686]
[1729057631375,30.243584,154.64,154.59,6.4686]
[1729057632455,6.75766659,154.67,154.58,11.61610417]
[1729057632677,91.5488,154.71,154.6,11.61610417]
[1729057632977,21.5488,154.71,154.62,27.37450417]
[1729057633273,6.4633,154.72,154.67,6.4651]
[1729057633848,6.4629,154.73,154.68,6.4648]
[1729057634375,21.516,154.75,154.7,6.464]
[1729057634805,91.516,154.75,154.69,6.4644]
[1729057635459,76.462,154.75,154.69,6.4644]
[1729057635660,23.776884,154.74,154.69,6.4644]
[1729057639567,23.776884,154.74,154.68,16.1613]
[1729057639769,6.4633,154.72,154.68,16.1613]
[1729057640661,6.4633,154.72,154.68,22.6262]
[1729057641257,6.4633,154.72,154.67,6.4653]
[1729057641456,6.4637,154.71,154.67,6.4653]
[1729057642767,30.240184,154.72,154.67,6.4653]
[1729057643890,70.0,154.75,154.64,11.61610417]
[1729057644068,6.4623,154.75,154.7,6.4639]
[1729057645582,20.0,154.76,154.69,16.1605]
[1729057645766,26.4616,154.76,154.71,6.4636]
[1729057649174,6.4616,154.76,154.71,6.4636]
[1729057650194,70.0,154.77,154.69,16.1605]
[1729057650371,6.4623,154.75,154.7,6.4639]
[1729057651163,70.0,154.77,154.7,6.4639]
[1729057651364,6.4625,154.74,154.69,22.6249]
[1729057651680,6.4624,154.75,154.7,6.464]
[1729057653066,98.31162441,154.79,154.69,16.1605]
[1729057653389,23.776884,154.77,154.72,6.4632]
[1729057654395,6.4616,154.76,154.72,6.4632]
[1729057654692,6.4626,154.74,154.69,22.6247]
[1729057655771,6.4626,154.74,154.7,6.464]
[1729057657791,6.462,154.75,154.7,6.464]
[1729057662082,23.776884,154.77,154.71,16.1584]
[1729057662792,6.4616,154.76,154.71,22.622]
[1729057663379,23.776884,154.77,154.71,16.1584]
[1729057663591,6.4616,154.76,154.72,6.4631]
[1729057663992,6.4616,154.76,154.71,22.6217]
[1729057664301,6.74812441,154.79,154.74,27.77210417]
[1729057664594,6.4595,154.81,154.75,6.462]
[1729057665172,6.4591,154.82,154.76,6.4612]
[1729057665371,6.4595,154.81,154.75,6.4619]
[1729057665796,6.4599,154.8,154.75,6.4619]
[1729057665981,6.4603,154.79,154.74,32.5442]
[1729057666189,70.0,154.81,154.73,20.0]
[1729057666399,6.4607,154.79,154.73,26.4628]
[1729057667400,23.776884,154.8,154.72,20.0]
[1729057667599,6.4611,154.78,154.72,26.4632]
[1729057667815,6.4613,154.77,154.72,26.4632]
[1729057668103,6.4607,154.78,154.73,6.4628]
[1729057669502,23.776884,154.81,154.72,31.61610417]
[1729057669801,6.4598,154.81,154.76,6.4615]
[1729057670674,6.4599,154.8,154.76,6.4615]
[1729057670877,6.4599,154.8,154.75,22.6162]
[1729057671889,20.0,154.82,154.75,16.1542]
[1729057672206,6.4619,154.76,154.72,20.0]
[1729057672399,70.0,154.8,154.72,26.4632]
[1729057672607,6.4612,154.77,154.72,26.4632]
[1729057672904,6.4622,154.75,154.71,16.1586]
[1729057673303,6.4622,154.75,154.71,22.6222]
[1729057673509,6.4618,154.76,154.71,22.6222]
[1729057675304,6.4612,154.77,154.72,6.4631]
[1729057676004,76.75513705,154.8,154.7,16.3882]
[1729057676213,26.4605,154.79,154.74,6.4623]
[1729057676415,6.4607,154.78,154.74,6.4623]
[1729057678656,26.4607,154.79,154.74,6.4623]
[1729057680312,6.4611,154.78,154.73,22.6191]
[1729057681217,20.0,154.79,154.7,28.00430417]
[1729057681502,6.4612,154.77,154.72,6.4632]
[1729057683938,70.0,154.77,154.7,39.0117]
[1729057684133,6.463,154.73,154.68,6.4648]
[1729057685018,6.463,154.73,154.69,6.4644]
[1729057686229,23.776884,154.76,154.69,6.4644]
[1729057686408,6.4625,154.74,154.69,6.4644]
[1729057688120,6.4608,154.78,154.73,6.4626]
[1729057690235,6.4618,154.76,154.71,6.4636]
[1729057690912,6.462,154.75,154.71,6.4636]
[1729057691122,6.462,154.75,154.7,16.1601]
[1729057691326,23.776884,154.75,154.7,16.1601]
[1729057691504,6.4625,154.74,154.7,16.1601]
[1729057693827,23.776884,154.71,154.62,34.78164525]
[1729057694034,23.776884,154.71,154.65,6.4661]
[1729057695429,6.4641,154.7,154.65,6.4661]
[1729057695636,6.4645,154.69,154.64,6.4665]
[1729057696015,6.4642,154.7,154.65,6.4662]
[1729057696217,70.0,154.72,154.65,16.1647]
[1729057696218,23.776884,154.72,154.65,16.1647]
[1729057696732,6.4637,154.71,154.67,6.4653]
[1729057696934,6.4637,154.71,154.65,16.1647]
[1729057697232,23.776884,154.72,154.62,33.81090417]
[1729057697420,30.240084,154.72,154.67,22.6277]
[1729057699038,6.4642,154.7,154.65,6.4658]
[1729057701446,26.4632,154.73,154.68,6.4647]
[1729057704039,70.0,154.76,154.67,16.1627]
[1729057704245,23.776884,154.75,154.67,16.1627]
[1729057704543,23.776884,154.75,154.7,6.4639]
[1729057704544,30.238884,154.75,154.7,6.4639]
[1729057707819,23.776884,154.75,154.69,16.1607]
[1729057708140,6.463,154.73,154.69,16.1607]
[1729057708441,6.4625,154.74,154.69,22.625]
[1729057710038,23.776884,154.75,154.69,16.1607]
[1729057710235,20.0,154.74,154.69,16.1607]
[1729057710438,6.4632,154.72,154.69,16.1607]
[1729057710750,23.776884,154.73,154.66,6.4654]
[1729057710930,6.464,154.71,154.66,6.4654]
[1729057711322,70.0,154.81,154.7,20.0]
[1729057711526,70.0,154.77,154.69,6.1757]
[1729057711736,6.4624,154.75,154.69,6.4644]
[1729057712445,70.0,154.77,154.69,6.4644]
[1729057712446,6.4626,154.74,154.69,6.4644]
[1729057712836,6.4626,154.74,154.68,22.6262]
[1729057713647,70.0,154.75,154.68,22.6262]
[1729057713835,6.4641,154.7,154.65,6.4661]
[1729057714747,120.240484,154.72,154.66,6.4657]
[1729057715736,50.240484,154.72,154.66,6.4657]
[1729057716039,43.776884,154.72,154.66,6.4657]
[1729057716250,6.4637,154.71,154.66,6.4657]
[1729057720434,113.776884,154.72,154.65,6.4662]
[1729057720435,6.4645,154.69,154.65,6.4662]
[1729057720657,6.4642,154.7,154.64,16.1662]
[1729057720834,6.4642,154.7,154.65,6.4661]
[1729057721650,50.240484,154.72,154.66,6.4654]
[1729057722028,50.240484,154.72,154.67,6.4653]
[1729057722656,6.4638,154.71,154.66,6.4657]
[1729057723724,6.4638,154.71,154.67,6.4653]
[1729057726443,6.4638,154.71,154.66,6.4657]
[1729057732655,30.240084,154.73,154.68,6.4649]
[1729057734671,30.240084,154.73,154.66,16.1638]
[1729057734867,30.240084,154.73,154.68,6.4649]
[1729057736164,6.4627,154.74,154.68,16.1618]
[1729057736360,23.776884,154.74,154.7,6.464]
[1729057736741,6.4628,154.74,154.69,6.4644]
[1729057738346,30.239784,154.73,154.69,6.4644]
[1729057738860,30.239784,154.73,154.68,16.1618]
[1729057739066,30.239784,154.73,154.68,22.6266]
[1729057743964,70.0,154.76,154.68,16.1618]
[1729057744164,26.4624,154.75,154.7,6.464]
[1729057744674,23.776884,154.74,154.7,6.464]
[1729057745091,30.239384,154.74,154.7,6.464]
[1729057750988,6.4625,154.74,154.7,6.464]
[1729057751174,30.238384,154.77,154.72,6.463]
[1729057753277,6.4615,154.77,154.73,6.4628]
[1729057753784,23.776884,154.77,154.73,6.4628]
[1729057755985,30.238084,154.77,154.73,6.4628]
[1729057758270,6.4616,154.76,154.72,16.1576]
[1729057759375,30.238084,154.77,154.72,22.6208]
[1729057761604,6.4628,154.74,154.69,38.6528]
[1729057761770,6.4628,154.74,154.56,1.12465495]
[1729057761771,70.0,154.72,154.65,16.1645]
[1729057762101,59.932584,154.75,154.65,16.1645]
[1729057762102,23.776884,154.69,154.65,16.1645]
[1729057762398,23.776884,154.67,154.62,16.1682]
[1729057763384,6.4658,154.66,154.62,16.1682]
[1729057763584,30.243284,154.65,154.6,21.4704]
[1729057763802,30.243284,154.65,154.59,16.1716]
[1729057763997,23.776884,154.65,154.59,22.6402]
[1729057764194,6.4669,154.64,154.59,22.6402]
[1729057764986,6.467,154.63,154.59,16.1716]
[1729057766091,70.0,154.64,154.59,22.6403]
[1729057766281,23.776884,154.65,154.59,16.1716]
[1729057766482,23.776884,154.65,154.6,6.4679]
[1729057769583,23.776884,154.67,154.62,16.1685]
[1729057770199,30.242184,154.67,154.62,22.6359]
[1729057771478,23.776884,154.67,154.63,6.4669]
[1729057771680,6.4641,154.7,154.65,6.4661]
[1729057771888,20.0,154.71,154.66,6.4656]
[1729057772402,6.464,154.71,154.66,6.4656]
[1729057772703,6.4641,154.7,154.65,22.6313]
[1729057774399,70.0,154.72,154.65,16.1652]
[1729057774597,70.0,154.72,154.66,6.4657]
[1729057774803,23.776884,154.7,154.66,6.4657]
[1729057775410,6.4645,154.69,154.65,16.1652]
[1729057783226,6.4645,154.69,154.65,22.6313]
[1729057783400,23.776884,154.71,154.66,6.4654]
[1729057784608,6.4645,154.69,154.65,22.6313]
[1729057784917,6.4642,154.7,154.65,22.6313]
[1729057788810,23.776884,154.69,154.65,22.6313]
[1729057789417,30.241384,154.69,154.65,16.1652]
[1729057790837,23.776884,154.69,154.62,15.2771]
[1729057791124,70.0,154.7,154.62,15.2771]
[1729057791125,23.776884,154.67,154.62,6.4674]
[1729057792021,93.776884,154.64,154.58,16.1725]
[1729057792211,6.4671,154.63,154.58,6.469]
[1729057794107,93.776884,154.64,154.57,16.1731]
[1729057794426,100.243484,154.64,154.59,6.4685]
[1729057797218,70.0,154.67,154.59,16.171]
[1729057797423,23.776884,154.65,154.62,6.4674]
[1729057797901,23.0792,154.68,154.63,6.467]
[1729057798108,76.3044,154.69,154.61,16.1687]
[1729057798410,76.4662,154.65,154.61,16.1687]
[1729057799323,23.776884,154.64,154.61,16.1687]
[1729057799529,23.776884,154.64,154.61,22.6365]
[1729057803115,23.776884,154.64,154.61,16.1687]
[1729057803432,23.776884,154.64,154.59,20.0]
[1729057803932,23.776884,154.64,154.58,16.1725]
[1729057804547,23.776884,154.64,154.6,6.4682]
[1729057804713,6.3044,154.69,154.61,16.1695]
[1729057804714,76.3044,154.69,154.61,16.1695]
[1729057804913,70.0,154.69,154.63,16.1667]
[1729057805224,15.7314,154.72,154.66,6.4656]
[1729057805225,70.0,154.71,154.66,6.4656]
[1729057805424,6.4641,154.7,154.66,6.4656]
[1729057806318,6.4629,154.73,154.68,6.4648]
[1729057807232,76.4629,154.73,154.68,6.4648]
[1729057807535,23.776884,154.72,154.68,6.4648]
[1729057808216,30.240384,154.72,154.66,16.1636]
[1729057808618,30.240384,154.72,154.67,6.4653]
[1729057811239,23.776884,154.72,154.66,16.1636]
[1729057811437,23.776884,154.72,154.68,6.4648]
[1729057813341,30.240184,154.72,154.68,6.4648]
[1729057813543,23.776884,154.72,154.69,6.4645]
[1729057813922,6.4624,154.74,154.71,6.4635]
[1729057813923,23.776884,154.74,154.71,6.4635]
[1729057816145,20.0,154.75,154.72,6.4631]